bitfinex/quotes_ETHUSD_20241108
["timestamp","ask_amount","ask_price","bid_price","bid_amount"]
[1731074132320,3.0,2950.2,2948.7,0.55]
[1731074132321,0.7536,2950.1,2948.7,0.55]
[1731074132517,0.7536,2950.1,2949.3,0.55]
[1731074132716,0.7536,2950.1,2949.3,1.379]
[1731074133361,0.8039,2950.5,2949.4,0.06779548]
[1731074133566,0.06774609,2950.4,2949.4,0.06779548]
[1731074134059,0.8039,2950.5,2949.4,0.06779548]
[1731074134462,0.8039,2950.5,2949.5,0.55]
[1731074134668,0.8039,2950.5,2949.7,0.55]
[1731074134849,0.8039,2950.5,2949.8,0.06778797]
[1731074135155,0.8039,2950.5,2949.7,0.68893549]
[1731074135547,0.06774609,2950.4,2949.5,0.06778805]
[1731074135747,0.06774609,2950.4,2949.3,0.829]
[1731074136063,0.06774609,2950.4,2949.4,0.0677961]
[1731074136538,0.06774609,2950.4,2949.3,0.829]
[1731074137870,0.06774609,2950.4,2949.5,0.69062953]
[1731074139681,0.06774609,2950.4,2949.8,0.02]
[1731074140469,0.8257,2950.3,2949.8,0.02]
[1731074140680,0.55301431,2950.2,2949.8,0.02]
[1731074142373,0.8257,2950.3,2949.8,0.02]
[1731074146189,0.7645,2950.6,2949.8,0.02]
[1731074147071,0.06774609,2950.5,2949.8,0.02]
[1731074148405,0.06774609,2950.5,2949.8,0.08779364]
[1731074151160,0.06774609,2950.5,2949.8,0.02]
[1731074152666,0.06774609,2950.5,2949.8,0.0877937]
[1731074153263,0.06774609,2950.5,2949.8,0.02]
[1731074153468,0.79,2950.4,2949.8,0.02]
[1731074153677,0.06774609,2950.3,2949.8,0.02]
[1731074155277,0.7887,2950.2,2949.8,0.02]
[1731074155481,0.06774609,2950.1,2949.8,0.02]
[1731074156009,0.38564461,2950.1,2949.8,0.02]
[1731074156178,0.7887,2950.2,2949.8,0.02]
[1731074156980,0.06774609,2950.1,2949.8,0.02]
[1731074158706,0.7784,2950.0,2949.8,0.02]
[1731074158915,0.06774609,2949.9,2949.8,0.02]
[1731074159067,0.84614609,2949.9,2949.8,0.02]
[1731074159274,4.32668431,2949.9,2949.8,0.02]
[1731074159896,0.8055,2949.8,2948.7,0.6925125]
[1731074160174,3.54828431,2949.9,2948.7,0.6925125]
[1731074160175,0.8055,2949.6,2948.7,0.6925125]
[1731074160397,0.06774609,2949.5,2948.2,0.7751]
[1731074160911,0.06774609,2949.5,2948.3,0.06781991]
[1731074161297,0.8055,2949.6,2948.6,0.55]
[1731074161637,0.7843,2950.1,2948.8,0.55]
[1731074161778,0.06774609,2950.0,2948.8,0.55]
[1731074162377,0.8175,2949.9,2948.7,0.8159]
[1731074162608,0.06774609,2950.0,2948.7,0.8159]
[1731074162609,0.8175,2949.7,2948.7,0.8159]
[1731074162809,0.06774609,2949.6,2948.7,0.8159]
[1731074163320,0.06774609,2949.6,2948.3,0.55]
[1731074163473,0.06774609,2949.6,2948.2,0.83]
[1731074163474,0.7621,2949.5,2948.2,0.83]
[1731074163675,0.8056,2949.3,2948.1,0.06782496]
[1731074164019,0.06774609,2949.2,2948.1,0.06782496]
[1731074164380,0.06774609,2949.2,2947.9,0.788]
[1731074164575,0.817,2949.1,2948.2,0.67446335]
[1731074164798,0.817,2949.1,2948.3,0.06782545]
[1731074165087,0.06774609,2949.0,2948.2,0.67446335]
[1731074165513,0.817,2949.1,2948.2,0.67446335]
[1731074165814,0.8158,2948.9,2947.4,0.8179]
[1731074166019,0.8158,2948.7,2947.4,0.8179]
[1731074166215,0.83514609,2948.6,2947.6,0.68584669]
[1731074166519,0.7674,2948.6,2947.7,0.06783653]
[1731074166735,0.06774609,2948.9,2947.4,0.8179]
[1731074166736,0.06774609,2948.9,2947.5,0.01]
[1731074166915,0.06774609,2949.3,2948.1,0.66992356]
[1731074167116,3.47890822,2949.4,2948.3,0.8211]
[1731074167117,0.7666,2949.2,2948.3,0.8211]
[1731074167316,0.7666,2949.2,2948.4,0.55]
[1731074167632,0.7666,2949.2,2948.5,0.06781703]
[1731074168507,0.7666,2949.2,2948.4,0.55]
[1731074169108,0.7666,2949.2,2948.5,0.06781711]
[1731074169521,0.8046,2949.6,2948.5,0.06781711]
[1731074169695,0.06774609,2949.5,2948.5,0.06781711]
[1731074170997,0.8046,2949.6,2948.6,0.55]
[1731074171499,0.8046,2949.6,2948.4,0.01]
[1731074171500,0.8046,2949.6,2948.5,0.8242]
[1731074171704,0.7791,2949.9,2949.0,0.55]
[1731074171905,0.7791,2949.9,2949.1,0.06780574]
[1731074172142,0.84684609,2950.2,2949.2,1.3742]
[1731074172340,0.7791,2950.5,2949.2,1.44200574]
[1731074172501,0.7791,2950.5,2949.2,1.3742]
[1731074172701,0.7791,2950.5,2949.4,0.55]
[1731074172949,0.7791,2950.5,2949.6,0.55]
[1731074173114,0.7791,2950.5,2949.8,1.3173]
[1731074173432,0.7791,2950.5,2949.9,0.06778622]
[1731074173842,0.7791,2950.5,2949.8,1.99676393]
[1731074174709,0.824,2950.9,2950.0,0.55]
[1731074175025,0.06774609,2950.8,2949.8,1.99676393]
[1731074175436,0.06774609,2950.8,2949.8,1.44676393]
[1731074175617,0.7796,2950.7,2949.5,0.7554]
[1731074175824,0.7796,2950.7,2949.7,0.55]
[1731074176020,0.7796,2950.7,2949.9,0.55]
[1731074176246,0.06774609,2950.6,2949.7,0.66394456]
[1731074176468,0.06774609,2950.6,2949.5,0.7554]
[1731074176667,3.7904,2950.5,2949.4,0.68383246]
[1731074176949,0.7987,2950.3,2949.4,0.68383246]
[1731074177247,0.7987,2950.1,2948.9,0.7851]
[1731074177446,0.7987,2950.1,2949.0,0.0678064]
[1731074177649,0.7987,2950.1,2949.1,0.06780022]
[1731074178078,0.7987,2950.1,2949.2,0.68186821]
[1731074178370,0.7987,2950.1,2949.3,0.06780025]
[1731074178673,0.06774609,2950.0,2949.2,0.68186821]
[1731074179051,0.7987,2950.1,2949.2,0.68186821]
[1731074179252,0.06774609,2950.0,2949.2,0.68186821]
[1731074179456,0.7987,2950.1,2949.3,0.0678065]
[1731074179661,0.06774609,2950.3,2949.5,0.8258]
[1731074179846,0.87084609,2950.4,2949.6,0.06779645]
[1731074180042,0.06774609,2950.3,2949.6,0.06779645]
[1731074181329,0.8031,2950.4,2949.6,0.06779645]
[1731074181535,0.06774609,2950.3,2949.6,0.06779645]
[1731074181758,0.8031,2950.4,2949.6,0.55]
[1731074182498,0.8031,2950.4,2949.8,0.67062453]
[1731074182972,0.8031,2950.4,2949.5,0.8258]
[1731074183895,0.8031,2950.4,2949.6,0.06779469]
[1731074184099,0.8031,2950.4,2949.7,0.06779469]
[1731074184299,0.8031,2950.4,2949.7,0.73833824]
[1731074184504,0.8031,2950.4,2949.7,0.67054355]
[1731074185165,0.8027,2950.7,2949.7,0.67054355]
[1731074185362,0.06774609,2950.6,2949.8,0.61779038]
[1731074185570,0.06774609,2950.6,2950.0,0.03388391]
[1731074185873,0.06774609,2951.2,2950.1,0.7979]
[1731074186071,0.8122,2951.5,2950.5,0.55]
[1731074186382,0.85094609,2952.4,2950.9,0.55]
[1731074186588,1.24878765,2952.4,2950.9,0.55]
[1731074187121,0.7832,2952.3,2950.8,0.7833]
[1731074187417,0.7827,2952.1,2950.8,0.7833]
[1731074187613,0.06774609,2952.0,2951.0,0.55]
[1731074187783,0.06774609,2952.0,2950.8,0.7833]
[1731074187983,0.06774609,2952.0,2950.9,0.55]
[1731074188198,0.7827,2951.6,2950.3,0.8085]
[1731074188422,0.7827,2951.4,2950.3,0.8085]
[1731074188618,0.06774609,2951.3,2950.3,0.8085]
[1731074188918,0.06774609,2951.3,2949.3,3.96841556]
[1731074188919,3.7827,2951.2,2949.3,3.96841556]
[1731074189120,3.96841556,2950.9,2949.7,0.8085]
[1731074189289,0.7827,2950.7,2949.3,0.8085]
[1731074189476,0.7827,2950.5,2949.4,0.73888425]
[1731074189677,0.06774609,2950.4,2949.4,0.73888425]
[1731074190003,0.06774609,2950.4,2949.4,0.06779879]
[1731074190525,0.06774609,2950.4,2949.3,1.48376097]
[1731074190880,0.06774609,2950.4,2949.4,0.06780303]
[1731074191073,0.06774609,2950.4,2949.3,1.48376097]
[1731074191276,0.06774609,2950.4,2948.6,0.36354495]
[1731074191277,0.8231,2950.3,2949.0,0.776]
[1731074191608,0.06774609,2950.2,2949.0,0.776]
[1731074191922,0.8231,2950.1,2949.0,0.776]
[1731074193431,7.79151556,2950.1,2948.4,0.8176]
[1731074193716,8.57844172,2950.1,2948.4,0.8176]
[1731074194274,1.61002616,2950.1,2948.5,0.06781816]
[1731074194523,4.67777225,2950.1,2948.5,0.06781816]
[1731074195593,4.67777225,2950.1,2948.4,1.5030224]
[1731074195794,4.67777225,2950.1,2949.1,0.8331]
[1731074196121,4.67777225,2950.1,2948.7,0.8331]
[1731074196477,4.67777225,2950.1,2948.8,0.06782078]
[1731074196704,4.67777225,2950.1,2948.7,0.8331]
[1731074199641,4.67777225,2950.1,2948.8,0.06782151]
[1731074199838,4.67777225,2950.1,2948.7,0.8331]
[1731074200903,5.53013449,2950.1,2948.7,0.8331]
[1731074202637,4.67777225,2950.1,2948.8,0.06782139]
[1731074203345,4.67777225,2950.1,2948.7,0.8331]
[1731074203513,4.67777225,2950.1,2948.7,0.9009161]
[1731074205360,7.90410908,2950.1,2948.7,0.9009161]
[1731074206448,7.90410908,2950.1,2948.7,0.8331]
[1731074206754,7.91410908,2950.1,2948.7,0.8331]
[1731074207127,0.01,2949.9,2948.7,0.8331]
[1731074207371,3.0,2949.6,2948.3,1.0]
[1731074207680,3.7724,2949.3,2948.4,0.7821]
[1731074207875,0.06774609,2949.2,2948.4,0.7821]
[1731074208105,0.06774609,2949.2,2948.3,1.0]
[1731074208106,3.22633683,2948.8,2948.3,1.0]
[1731074208252,3.06774609,2948.7,2948.3,1.0]
[1731074208457,0.62940829,2948.6,2948.3,1.0]
[1731074208701,0.06774609,2948.5,2948.3,1.0]
[1731074208999,0.06774609,2948.6,2948.3,1.0]
[1731074209554,3.0,2948.8,2948.3,1.0]
[1731074209790,0.06774609,2948.7,2948.3,1.0]
[1731074209990,0.30677461,2948.6,2948.3,1.0]
[1731074210198,0.06774609,2948.5,2948.3,1.0]
[1731074210856,0.06774609,2948.7,2948.3,1.0]
[1731074211884,3.0,2948.8,2948.3,1.0]
[1731074212080,0.06774609,2948.7,2948.3,1.0]
[1731074212696,0.84716849,2948.7,2948.3,1.0]
[1731074216169,3.0,2948.4,2948.3,1.0]
[1731074216373,3.82524609,2948.4,2948.3,1.0]
[1731074216767,3.82524609,2948.4,2946.9,0.7944]
[1731074216768,0.7575,2948.3,2946.9,0.7944]
[1731074217000,3.7575,2947.7,2946.9,0.7944]
[1731074217164,0.06774609,2947.6,2946.9,0.7944]
[1731074217364,1.82524609,2947.7,2946.9,0.7944]
[1731074217609,2.40517849,2947.7,2946.9,35.7944]
[1731074217760,1.82524609,2947.7,2946.9,35.7944]
[1731074218108,3.97407789,2947.8,2945.8,0.35392914]
[1731074218109,3.97407789,2947.4,2946.6,0.8137]
[1731074218601,3.97407789,2947.4,2946.6,35.8137]
[1731074219510,3.0,2947.3,2946.6,35.8137]
[1731074220106,3.0,2947.3,2946.6,35.0]
[1731074220702,3.8132,2947.3,2946.6,35.0]
[1731074221363,3.8132,2947.3,2946.3,0.772]
[1731074221840,0.8132,2947.6,2946.4,35.06787425]
[1731074221969,3.97407789,2947.8,2946.7,0.67376944]
[1731074222168,3.97407789,2947.8,2946.8,0.817]
[1731074222401,0.47872779,2947.7,2946.8,0.817]
[1731074222568,3.97407789,2947.8,2946.8,0.817]
[1731074222765,3.97407789,2947.8,2946.9,35.0]
[1731074223190,3.0,2947.7,2946.9,35.0]
[1731074223396,0.8132,2947.9,2946.9,35.0]
[1731074225483,0.8132,2947.9,2947.0,0.24937832]
[1731074225811,3.0,2948.2,2946.4,0.6816363]
[1731074225812,0.7981,2948.2,2947.2,0.8231]
[1731074225968,0.7981,2948.2,2947.3,0.24937832]
[1731074226168,0.7981,2948.2,2947.4,35.24937832]
[1731074226369,0.7981,2948.2,2947.5,0.24937832]
[1731074226612,0.7981,2948.2,2947.6,0.24937832]
[1731074226926,0.7981,2948.2,2947.7,0.24937832]
[1731074227133,0.7981,2948.2,2947.5,0.24937832]
[1731074227292,0.7981,2948.2,2947.6,0.24937832]
[1731074227492,0.7981,2948.2,2947.7,0.24937832]
[1731074227814,0.7981,2948.2,2947.4,35.0]
[1731074227815,0.7981,2948.2,2947.8,0.24937832]
[1731074228005,0.7981,2948.2,2947.5,0.24937832]
[1731074228347,0.7981,2948.2,2947.4,35.0]
[1731074228348,0.7981,2948.2,2947.6,0.24937832]
[1731074228490,0.7981,2948.2,2947.7,0.24937832]
[1731074228692,0.7981,2948.2,2947.8,0.24937832]
[1731074228892,0.7981,2948.2,2947.5,0.24937832]
[1731074229093,0.7981,2948.2,2947.6,0.24937832]
[1731074229402,0.7981,2948.2,2947.7,0.24937832]
[1731074229728,0.7981,2948.2,2947.8,0.24937832]
[1731074229943,0.7981,2948.2,2947.9,0.24937832]
[1731074230225,0.7901,2948.5,2948.0,0.24937832]
[1731074230391,0.7901,2948.5,2947.5,0.24937832]
[1731074230592,0.7901,2948.5,2947.6,0.24937832]
[1731074230818,0.7901,2948.5,2947.4,35.0]
[1731074230819,0.7901,2948.5,2947.7,0.24937832]
[1731074231022,0.7901,2948.5,2947.8,0.24937832]
[1731074231192,0.7901,2948.5,2947.9,0.24937832]
[1731074231391,0.7901,2948.5,2948.0,0.24937832]
[1731074231626,0.46503683,2948.4,2947.5,0.24937832]
[1731074231794,0.46503683,2948.4,2947.6,0.24937832]
[1731074231996,0.46503683,2948.4,2947.7,0.24937832]
[1731074232240,0.46503683,2948.4,2947.8,0.24937832]
[1731074232531,3.0,2948.3,2947.9,0.24937832]
[1731074232732,1.42055856,2948.2,2947.9,0.24937832]
[1731074233037,1.42055856,2948.2,2947.3,0.24937832]
[1731074233247,1.42055856,2948.2,2947.1,0.24969997]
[1731074233542,1.42055856,2948.2,2947.2,0.24969997]
[1731074233709,0.7664,2948.1,2947.3,0.24969997]
[1731074233908,0.7664,2948.1,2947.4,0.24969997]
[1731074234219,3.7589,2948.0,2947.5,0.24969997]
[1731074234442,3.0,2947.7,2947.6,0.24969997]
[1731074234761,0.7671,2947.6,2946.6,35.7605]
[1731074235057,0.7671,2947.6,2945.9,0.7605]
[1731074235254,0.7671,2947.6,2946.0,0.06787983]
[1731074235455,0.37671,2947.5,2946.1,35.0]
[1731074235671,0.7961,2947.4,2946.1,35.0]
[1731074235862,3.7961,2947.4,2946.1,35.0]
[1731074236058,4.53633588,2947.4,2946.1,35.0]
[1731074236264,0.8195,2947.3,2946.1,35.0]
[1731074236614,0.8195,2947.3,2945.6,1.14056107]
[1731074236615,3.8195,2946.8,2945.6,1.14056107]
[1731074236931,0.70490488,2946.7,2945.6,0.7634]
[1731074237134,0.8195,2946.8,2945.7,35.06788946]
[1731074237369,0.8195,2946.8,2945.7,35.0]
[1731074238847,3.8195,2946.8,2945.7,35.0]
[1731074239044,0.7702,2946.7,2945.3,0.66638866]
[1731074239262,0.7702,2946.4,2945.0,0.7893]
[1731074239445,0.7702,2946.4,2945.1,0.0678986]
[1731074239646,0.7702,2946.4,2945.2,35.0]
[1731074240173,0.7702,2946.4,2945.3,4.65284739]
[1731074240342,0.7702,2946.4,2945.3,1.4232986]
[1731074242077,0.7702,2946.4,2945.3,1.3554]
[1731074242580,0.7702,2946.4,2945.4,0.06788749]
[1731074242940,0.7702,2946.4,2945.5,0.55]
[1731074243243,0.7749,2946.9,2945.8,0.55]
[1731074243442,0.7749,2946.9,2945.9,35.0]
[1731074243846,0.7749,2946.9,2946.0,0.55]
[1731074244229,0.7749,2946.9,2945.7,0.8134]
[1731074244230,0.7749,2946.9,2945.8,0.55]
[1731074244475,2.00281094,2947.2,2947.0,3.39328]
[1731074244787,1.09e-06,2947.2,2947.1,3.39316]
[1731074244965,0.01,2947.9,2946.9,3.39339]
[1731074244966,0.01,2948.0,2946.9,3.39339]
[1731074245166,3.22954879,2947.7,2946.4,0.06787175]
[1731074245371,0.85374579,2948.4,2946.5,0.7632]
[1731074245535,0.01,2949.3,2947.5,0.55]
[1731074245759,0.32395488,2949.2,2947.7,0.55]
[1731074245958,3.22954879,2949.7,2947.2,0.01]
[1731074245959,3.22954879,2949.7,2948.0,0.7824]
[1731074246166,0.7732,2950.2,2948.1,1.38393738]
[1731074246167,0.86112175,2949.9,2948.1,1.38393738]
[1731074246359,3.22954879,2950.0,2948.1,1.38393738]
[1731074246559,0.32295488,2949.9,2948.3,0.55]
[1731074246760,0.32295488,2949.9,2948.5,0.55]
[1731074247273,0.32295488,2949.9,2948.3,0.55]
[1731074247497,0.7071,2950.0,2948.3,1.50393738]
[1731074247802,0.7071,2950.0,2948.5,0.55]
[1731074248158,0.7071,2950.0,2948.4,0.55]
[1731074248717,0.6971,2949.9,2948.5,35.0]
[1731074249003,0.6971,2949.9,2948.6,2.36696312]
[1731074249715,0.6971,2949.9,2948.8,0.55]
[1731074250114,0.6971,2949.9,2948.6,0.7952]
[1731074250320,0.6971,2949.9,2948.3,0.55]
[1731074250606,0.6971,2949.9,2948.3,0.61782509]
[1731074251013,0.6971,2949.9,2948.4,0.59303559]
[1731074251185,0.6971,2949.9,2948.5,0.55]
[1731074251698,0.6971,2949.9,2948.7,0.55]
[1731074252708,0.6971,2949.9,2948.9,0.55]
[1731074253013,0.6971,2949.9,2948.8,0.55]
[1731074257086,0.6971,2949.9,2948.2,1.47505146]
[1731074257291,0.6971,2949.7,2948.2,0.7947]
[1731074257627,0.6971,2949.7,2947.8,4.56461231]
[1731074257829,0.6971,2949.7,2947.9,0.7846]
[1731074258122,0.6971,2949.6,2947.9,0.7846]
[1731074258286,0.6971,2949.5,2947.8,3.97157672]
[1731074258487,0.6971,2949.3,2947.8,4.36873439]
[1731074259423,0.6971,2949.3,2947.9,0.55]
[1731074259831,0.6971,2949.3,2947.5,0.7634]
[1731074261149,0.6971,2949.1,2947.1,0.7902]
[1731074261307,0.7071,2948.9,2947.1,2.46729022]
[1731074261507,0.6971,2948.7,2947.1,1.26637767]
[1731074261708,0.6971,2948.7,2946.6,0.8075]
[1731074261942,0.6971,2948.7,2946.7,0.06785526]
[1731074262315,0.6971,2948.7,2946.6,0.8075]
[1731074262755,0.6971,2948.7,2946.9,3.97157672]
[1731074262906,0.36971,2948.6,2947.3,3.97157672]
[1731074263112,0.6971,2948.7,2947.4,0.55]
[1731074263356,0.6971,2948.7,2947.7,0.7952]
[1731074263650,0.6971,2948.7,2947.4,0.7952]
[1731074263848,0.6971,2948.7,2947.5,0.55]
[1731074264148,0.6971,2948.7,2947.5,1.08167767]
[1731074264312,0.68014548,2948.7,2947.7,0.55]
[1731074264507,0.68014548,2948.7,2947.4,0.7952]
[1731074264945,0.68014548,2948.7,2947.5,0.55]
[1731074269246,0.68014548,2948.7,2947.7,0.55]
[1731074269448,0.68014548,2948.7,2947.7,0.61783839]
[1731074269655,0.68014548,2948.7,2947.9,0.55]
[1731074270022,0.68014548,2948.7,2947.8,1.07301854]
[1731074270228,0.68014548,2948.7,2947.5,0.55]
[1731074270854,0.68014548,2948.7,2947.1,0.819]
[1731074271065,0.68014548,2948.7,2947.2,0.06785406]
[1731074272319,0.68014548,2948.7,2947.3,0.55]
[1731074272655,0.68014548,2948.7,2947.5,0.55]
[1731074273418,0.68014548,2948.7,2947.4,0.55]
[1731074276227,0.64449581,2948.7,2947.4,0.55]
[1731074276522,0.64449581,2948.7,2947.4,0.54895731]
[1731074277219,0.64449581,2948.7,2947.5,0.06784582]
[1731074277560,0.64449581,2948.7,2947.3,0.21295223]
[1731074277756,0.64449581,2948.7,2947.1,0.69266826]
[1731074277958,0.64449581,2948.7,2947.2,0.06785155]
[1731074278664,0.64449581,2948.7,2947.3,0.55]
[1731074279613,0.64449581,2948.7,2947.5,0.55]
[1731074280445,0.64449581,2948.7,2947.6,0.4642173]
[1731074281150,0.64449581,2948.7,2947.7,0.61784565]
[1731074282435,0.64449581,2948.7,2948.0,0.55]
[1731074282641,0.64449581,2948.7,2948.0,0.61784037]
[1731074283043,0.64449581,2948.7,2948.2,0.55]
[1731074283449,0.64449581,2948.7,2948.4,0.55]
[1731074283657,0.6445,2949.6,2948.4,0.55]
[1731074283857,0.6445,2949.6,2948.2,0.55]
[1731074284088,0.6445,2949.6,2948.4,0.55]
[1731074284378,0.6445,2949.6,2948.2,0.55]
[1731074284542,0.6445,2949.6,2948.4,0.55]
[1731074285778,0.6445,2949.6,2948.0,4.73806738]
[1731074285779,0.6445,2949.6,2948.6,0.55]
[1731074285940,0.6445,2949.6,2948.8,0.55]
[1731074286143,0.6445,2949.9,2949.0,0.55]
[1731074286378,0.6445,2949.9,2948.8,3.97376738]
[1731074286379,0.6445,2949.9,2949.2,0.55]
[1731074286692,0.6445,2949.9,2949.4,0.55]
[1731074287187,0.6445,2949.9,2949.3,0.55]
[1731074287988,0.6445,2949.9,2949.3,1.3439]
[1731074288280,0.6445,2949.9,2949.5,0.55]
[1731074288786,0.6445,2949.9,2948.7,0.01]
[1731074288787,0.6445,2949.9,2948.6,0.7939]
[1731074288952,0.6445,2949.9,2948.8,0.66260387]
[1731074289162,0.6445,2949.9,2948.3,0.7939]
[1731074290150,0.6445,2949.9,2948.4,0.61781506]
[1731074290340,0.6445,2949.9,2948.7,0.01]
[1731074290570,0.6445,2949.9,2948.9,0.55]
[1731074290882,0.6445,2949.9,2949.1,0.55]
[1731074291079,0.6445,2949.9,2949.3,0.55]
[1731074291583,0.6445,2949.9,2949.4,0.0678038]
[1731074292343,0.6445,2949.9,2949.4,0.55]
[1731074292781,0.6445,2949.9,2949.2,0.55]
[1731074293085,0.6445,2949.9,2949.4,0.55]
[1731074293245,0.6445,2949.9,2949.3,0.55]
[1731074293445,0.6445,2949.9,2949.3,0.61780473]
[1731074293670,0.6445,2949.9,2949.3,0.55]
[1731074294267,0.6445,2949.9,2948.8,0.7923]
[1731074294616,0.6445,2949.9,2948.9,0.61781026]
[1731074294892,0.6445,2949.9,2949.1,0.55]
[1731074295849,0.6445,2949.9,2948.8,0.68591018]
[1731074297187,0.6445,2949.9,2948.9,0.06781671]
[1731074297747,0.6445,2949.9,2948.9,0.55]
[1731074299915,3.0,2949.9,2948.3,0.8019]
[1731074300085,0.6445,2949.7,2948.0,3.99365617]
[1731074300489,0.6445,2949.5,2948.0,3.99365617]
[1731074300694,0.6445,2949.2,2947.6,0.7692]
[1731074300877,0.6445,2949.2,2947.7,3.29329345]
[1731074301083,0.6445,2949.2,2947.7,4.20080081]
[1731074302102,0.6445,2949.2,2947.7,3.72775717]
[1731074302419,0.6445,2949.2,2948.0,0.68452632]
[1731074302633,0.6445,2949.0,2947.3,0.8236]
[1731074302815,0.6445,2948.9,2947.4,3.72776727]
[1731074303177,0.6445,2948.9,2947.7,3.22545617]
[1731074303377,0.6445,2948.9,2948.0,3.22545617]
[1731074303682,0.6445,2948.9,2948.1,0.47372865]
[1731074303914,0.6445,2948.9,2948.2,0.55]
[1731074304083,0.6445,2948.9,2948.3,0.06782557]
[1731074304416,0.6445,2948.9,2948.2,0.55]
[1731074304981,0.6445,2948.9,2948.4,0.55]
[1731074305519,0.6445,2948.9,2948.2,0.55]
[1731074305690,0.6445,2948.9,2948.0,0.55]
[1731074305909,0.6445,2948.9,2948.2,0.55]
[1731074307218,0.6445,2948.9,2948.2,0.61782322]
[1731074307423,0.6445,2948.9,2948.2,0.55]
[1731074308307,0.6445,2948.9,2948.1,0.67584191]
[1731074308513,0.6445,2948.9,2948.2,0.06783703]
[1731074308916,0.6445,2948.9,2948.1,0.67584191]
[1731074309602,0.6445,2948.9,2947.6,0.06783379]
[1731074309796,0.6445,2948.9,2947.7,0.40696372]
[1731074310023,0.6445,2948.9,2947.8,0.0678404]
[1731074310440,0.6445,2948.9,2948.0,0.68282333]
[1731074312620,0.6445,2948.9,2947.3,0.55]
[1731074312813,0.6445,2948.9,2947.5,0.55]
[1731074313313,0.6445,2948.8,2947.4,0.42284478]
[1731074313609,0.6445,2948.8,2947.4,0.06784478]
[1731074313813,0.6445,2948.8,2947.5,0.68963646]
[1731074314119,0.6445,2948.8,2947.6,0.06784056]
[1731074314498,0.6445,2948.8,2947.7,0.55]
[1731074315824,0.6445,2948.8,2947.9,0.55]
[1731074317552,0.6445,2948.8,2947.4,0.55]
[1731074317926,0.6445,2948.8,2947.3,0.55]
[1731074318255,0.6445,2948.8,2947.9,0.55]
[1731074319014,0.6445,2948.8,2947.9,0.61783944]
[1731074319449,0.6445,2948.8,2947.9,0.61783321]
[1731074320125,0.6445,2948.8,2947.9,0.55]
[1731074323457,0.6445,2948.8,2947.4,0.0678388]
[1731074323957,0.6445,2948.8,2947.1,3.01]
[1731074324161,0.6445,2948.8,2947.2,0.86534884]
[1731074324460,0.6445,2948.8,2947.3,0.06783991]
[1731074324893,0.6445,2948.8,2947.3,0.55]
[1731074325248,0.6445,2948.8,2947.8,0.55]
[1731074325846,0.6445,2948.8,2947.8,0.61783985]
[1731074326177,0.6445,2948.8,2947.8,0.55]
[1731074326783,0.6445,2948.8,2947.7,0.66388494]
[1731074326955,0.6445,2948.8,2947.3,0.55]
[1731074327158,0.6445,2948.8,2947.5,0.55]
[1731074327373,0.6445,2948.8,2947.7,0.55]
[1731074327970,0.6445,2948.8,2947.8,0.06784341]
[1731074328269,0.6445,2948.8,2947.9,0.55]
[1731074328584,0.6445,2948.8,2947.7,0.55]
[1731074328784,0.6445,2948.8,2947.9,0.55]
[1731074329582,0.6445,2948.8,2947.9,0.61783721]
[1731074330252,0.6445,2948.8,2947.9,0.55]
[1731074331163,0.6445,2948.8,2948.0,35.0]
[1731074331358,0.6445,2948.8,2947.7,0.55]
[1731074331560,0.6445,2948.8,2947.9,0.55]
[1731074331797,0.6445,2948.8,2947.9,35.55]
[1731074333871,0.6445,2948.8,2948.1,0.55]
[1731074334075,0.6445,2948.8,2948.3,0.55]
[1731074335654,0.6445,2948.8,2948.5,0.55]
[1731074336085,3.0,2949.8,2948.5,0.55]
[1731074336086,0.6445,2949.8,2948.5,0.55]
[1731074336319,0.6445,2949.8,2948.6,0.55]
[1731074336525,0.6445,2949.8,2948.8,0.55]
[1731074336825,0.6445,2949.8,2948.6,0.55]
[1731074337541,0.6445,2949.8,2948.8,0.55]
[1731074337826,0.6445,2949.8,2948.6,0.55]
[1731074338349,0.6445,2949.8,2948.8,0.55]
[1731074338686,0.6445,2949.8,2948.5,0.66708241]
[1731074338687,0.6445,2949.8,2948.6,0.55]
[1731074338888,0.6445,2949.8,2948.8,0.55]
[1731074339087,0.6445,2949.8,2948.9,35.0]
[1731074341129,0.6445,2949.8,2949.0,0.61781819]
[1731074341338,0.6445,2949.8,2949.0,3.84610472]
[1731074341689,0.6445,2949.8,2949.2,0.55]
[1731074341886,0.6445,2951.0,2949.4,0.55]
[1731074342190,0.6445,2951.0,2949.6,0.55]
[1731074342384,3.22828653,2951.1,2949.6,0.55]
[1731074342385,0.6445,2950.8,2949.6,0.55]
[1731074342626,0.6445,2950.7,2949.7,35.0]
[1731074343232,3.6445,2950.7,2949.7,35.0]
[1731074343402,3.0,2950.7,2949.7,35.0]
[1731074343610,0.6445,2950.6,2949.7,35.0]
[1731074345915,0.6445,2950.6,2949.7,0.61780057]
[1731074346120,0.6445,2950.6,2949.9,0.55]
[1731074346315,0.6445,2950.6,2950.1,0.55]
[1731074346627,0.6445,2951.1,2950.3,0.55]
[1731074348627,0.6445,2951.1,2950.5,0.55]
[1731074349244,0.6445,2951.1,2950.3,0.55]
[1731074350125,0.6445,2951.1,2950.6,0.55]
[1731074350506,0.6445,2951.1,2950.2,35.0]
[1731074350911,0.6445,2951.1,2949.6,3.22828653]
[1731074351138,0.6445,2950.9,2949.7,0.40044865]
[1731074351339,3.6445,2950.9,2949.8,35.68434495]
[1731074351547,0.6445,2950.8,2949.3,3.22828653]
[1731074351715,0.6445,2950.6,2949.2,0.7796]
[1731074351904,0.6445,2950.6,2949.3,35.0]